lending/lending_fUSD_20240622
["ID","MTS","AMOUNT","RATE_DAILY","PERIOD"]
[330176528,1719075236590,-151.0,0.00042,14]
[330176529,1719075236624,-202.285714,0.00042,14]
[330176530,1719075236662,-1995364.48473936,0.0004288,60]
[330176531,1719075240791,-269.219,0.00041884,30]
[330176532,1719075240830,-1999730.781,0.0004288,60]
[330176533,1719075250964,-6060.76,0.00027397,10]
[330176534,1719075251022,-500.0,0.00039451,10]
[330176535,1719075251058,-500.0,0.00040547,10]
[330176536,1719075251095,-500.0,0.00041643,30]
[330176537,1719075251131,-800.0,0.00042191,30]
[330176538,1719075251167,-800.0,0.00042191,30]
[330176539,1719075251202,-500.0,0.00042191,30]
[330176540,1719075251240,-800.0,0.00042465,30]
[330176541,1719075251275,-800.0,0.00042465,30]
[330176542,1719075251308,-800.0,0.00042739,30]
[330176543,1719075251344,-800.0,0.00042739,30]
[330176544,1719075251383,-536.40694809,0.00042739,30]
[330176545,1719075251422,-1986602.83305191,0.0004288,60]
[330176546,1719075256251,-2000000.0,0.0004288,60]
[330176547,1719075259906,-5050.63,0.00027397,10]
[330176548,1719075259952,-1403.97680355,0.00031493,60]
[330176549,1719075260005,-1993545.39319645,0.0004288,60]
[330176550,1719075270681,-4208.86,0.00027397,10]
[330176551,1719075270748,-910956.33821215,0.0004288,60]
[330176552,1719075270785,-336.07134,0.0004288,14]
[330176553,1719075270820,-336.07134,0.0004288,14]
[330176554,1719075270857,-400.671873,0.0004288,14]
[330176555,1719075270894,-400.671873,0.0004288,14]
[330176556,1719075270930,-319.635029,0.0004288,14]
[330176557,1719075270984,-202.2102,0.0004288,14]
[330176558,1719075271024,-202.2102,0.0004288,14]
[330176559,1719075271065,-151.0,0.0004288,14]
[330176560,1719075271108,-150.0,0.0004288,30]
[330176561,1719075271151,-1397650.45849814,0.000429,30]
[330176562,1719075271193,-684685.80143471,0.000429,30]
[330176563,1719075274255,-577553.47352594,0.000429,30]
[330176564,1719075274300,-336.07134,0.000429,14]
[330176565,1719075274344,-336.07134,0.000429,14]
[330176566,1719075274388,-400.671873,0.000429,14]
[330176567,1719075274432,-400.671873,0.000429,14]
[330176568,1719075274473,-202.2102,0.000429,14]
[330176569,1719075274514,-202.2102,0.000429,14]
[330176570,1719075274557,-151.0,0.000429,14]
[330176571,1719075274601,-154.71187443,0.00042918,30]
[330176572,1719075274639,-166.66666666,0.00042972,30]
[330176573,1719075274680,-459.28769616,0.00042984,30]
[330176574,1719075274721,-1076.92193816,0.00043,120]
[330176575,1719075274761,-2000.0,0.00043,60]
[330176576,1719075274805,-2611.0,0.00043,120]
[330176577,1719075274844,-500.0,0.00043,120]
[330176578,1719075274884,-600.0,0.00043,120]
[330176579,1719075274924,-482.20322634,0.00043,30]
[330176580,1719075274965,-800.0,0.00043013,30]
[330176581,1719075275004,-800.0,0.00043013,30]
[330176582,1719075275044,-201.32112741,0.0004302,120]
[330176583,1719075275081,-502.10979225,0.0004321,120]
[330176584,1719075275119,-300.0,0.0004326,120]
[330176585,1719075275159,-800.0,0.00043287,30]
[330176586,1719075275196,-800.0,0.00043287,30]
[330176587,1719075275232,-155.81513259,0.00043313,30]
[330176588,1719075275269,-152.0,0.00043383,24]
[330176589,1719075275307,-160.76013826,0.00043479,30]
[330176590,1719075275348,-250.0,0.000435,15]
[330176591,1719075275389,-800.0,0.00043561,30]
[330176592,1719075275429,-160.76013828,0.00043598,30]
[330176593,1719075275470,-150.0,0.0004368,120]
[330176594,1719075275506,-2500.0,0.000437,120]
[330176595,1719075275540,-2000.0,0.00043781,30]
[330176596,1719075275576,-1508.0,0.000438,60]
[330176597,1719075275612,-464.63134271,0.000438,30]
[330176598,1719075275649,-484.04309827,0.000438,120]
[330176599,1719075275685,-110289.69,0.000438,120]
[330176600,1719075275722,-150.0,0.00043832,120]
[330176601,1719075275759,-500.0,0.00043835,120]
[330176602,1719075275815,-500.0,0.00043835,120]
[330176603,1719075275854,-500.0,0.00043835,120]
[330176604,1719075275891,-500.0,0.00043835,120]
[330176605,1719075275928,-500.0,0.00043835,120]
[330176606,1719075275964,-500.0,0.00043835,120]
[330176607,1719075276000,-500.0,0.00043835,120]
[330176608,1719075276035,-500.0,0.00043835,120]
[330176609,1719075276075,-800.0,0.00043835,30]
[330176610,1719075276116,-200.0,0.00043836,60]
[330176611,1719075276153,-500.0,0.00043836,14]
[330176612,1719075276191,-501.09747658,0.00043836,31]
[330176613,1719075276238,-155.67108888,0.00043838,30]
[330176614,1719075276277,-579.77269249,0.0004388,30]
[330176615,1719075276316,-895123.5386553,0.0004388,30]
[330176616,1719075276353,-178.44940187,0.0004388,120]
[330176617,1719075276394,-813.45786406,0.000439,120]
[330176618,1719075276435,-155.81513266,0.00043978,30]
[330176619,1719075276484,-50000.0,0.00044,34]
[330176620,1719075276526,-20000.0,0.00044,120]
[330176621,1719075276569,-272.6578137,0.00044,120]
[330176622,1719075276609,-750.0,0.00044,120]
[330176623,1719075276649,-2000.0,0.00044,60]
[330176624,1719075276687,-510.0,0.00044,120]
[330176625,1719075276727,-679.218512,0.00044,57]
[330176626,1719075276765,-154.78370519,0.00044011,30]
[330176627,1719075276804,-571.85365538,0.00044046,16]
[330176628,1719075276843,-500.0,0.00044109,120]
[330176629,1719075276879,-800.0,0.00044109,30]
[330176630,1719075276917,-886.62023158,0.000442,120]
[330176631,1719075276956,-886.62023158,0.000442,120]
[330176632,1719075276993,-886.62023158,0.000442,120]
[330176633,1719075277031,-886.62023158,0.000442,120]
[330176634,1719075277068,-886.62023158,0.000442,120]
[330176635,1719075277109,-150.0,0.00044211,120]
[330176636,1719075277148,-500.0,0.00044383,120]
[330176637,1719075277183,-597.98798241,0.00044383,120]
[330176638,1719075277218,-341.1594427,0.00044383,120]
[330176639,1719075277255,-800.0,0.00044383,30]
[330176640,1719075277290,-176.13627181,0.00044384,30]
[330176641,1719075277326,-150.0,0.00044384,30]
[330176642,1719075277362,-150.0,0.00044384,30]
[330176643,1719075277406,-229.91862882,0.00044384,30]
[330176644,1719075277443,-150.0,0.00044384,30]
[330176645,1719075277483,-150.0,0.00044384,30]
[330176646,1719075277520,-150.0,0.00044384,30]
[330176647,1719075277559,-150.0,0.00044384,30]
[330176648,1719075277596,-150.0,0.00044384,30]
[330176650,1719075277635,-297.7647275,0.00044384,30]
[330176651,1719075277673,-150.0,0.00044384,30]
[330176652,1719075277709,-150.0,0.00044384,30]
[330176653,1719075278266,-150.0,0.00044384,30]
[330176654,1719075278303,-172.98,0.00044384,120]
[330176655,1719075278340,-238.9,0.00044384,120]
[330176656,1719075278375,-176.13627181,0.00044433,30]
[330176657,1719075278421,-229.91862882,0.00044433,30]
[330176658,1719075278463,-176.13627181,0.00044483,30]
[330176659,1719075278506,-229.91862882,0.00044483,30]
[330176660,1719075278548,-1039.0,0.00044507,30]
[330176661,1719075278590,-150.0,0.00044513,30]
[330176662,1719075278625,-176.13627181,0.00044533,30]
[330176663,1719075278661,-229.91862882,0.00044533,30]
[330176664,1719075278696,-323.0,0.0004454,30]
[330176665,1719075278732,-533.0,0.0004454,30]
[330176666,1719075278768,-153.55871675,0.00044551,30]
[330176667,1719075278801,-150.0,0.00044573,30]
[330176668,1719075278835,-176.13627181,0.00044583,30]
[330176669,1719075278870,-229.91862882,0.00044583,30]
[330176670,1719075278906,-165.4978837,0.00044603,30]
[330176671,1719075278949,-176.13627181,0.00044633,30]
[330176672,1719075278990,-229.91862882,0.00044633,30]
[330176673,1719075279032,-150.0,0.00044643,30]
[330176674,1719075279069,-673.59033348,0.00044657,30]
[330176675,1719075279106,-800.0,0.00044657,30]
[330176676,1719075279145,-176.13627181,0.00044682,30]
[330176677,1719075279182,-229.91862882,0.00044682,30]
[330176678,1719075279220,-176.13627181,0.00044732,30]
[330176679,1719075279258,-229.91862882,0.00044732,30]
[330176680,1719075279297,-150.0,0.00044763,30]
[330176681,1719075279337,-150.0,0.00044773,30]
[330176682,1719075279375,-176.13627181,0.00044782,30]
[330176683,1719075279419,-229.91862882,0.00044782,30]
[330176684,1719075279457,-157.95,0.000448,36]
[330176685,1719075279498,-157.95,0.000448,36]
[330176686,1719075279536,-176.13627181,0.00044832,30]
[330176687,1719075279573,-229.91862882,0.00044832,30]
[330176688,1719075279611,-176.13627181,0.00044882,30]
[330176689,1719075279649,-229.91862882,0.00044882,30]
[330176690,1719075279687,-150.0,0.00044903,30]
[330176691,1719075279730,-800.0,0.00044931,30]
[330176692,1719075279768,-176.13627181,0.00044931,30]
[330176693,1719075279805,-229.91862882,0.00044931,30]
[330176694,1719075279842,-150.0,0.00044953,30]
[330176695,1719075279881,-176.13627181,0.00044981,30]
[330176696,1719075279921,-229.91862882,0.00044981,30]
[330176697,1719075279965,-50000.0,0.00045,35]
[330176698,1719075280003,-256.21463546,0.00045,15]
[330176699,1719075280040,-141753.7770675,0.00045,14]
[330176700,1719075280078,-454.42201612,0.00045,10]
[330176701,1719075280115,-242.7148965,0.00045,30]
[330176702,1719075280154,-2950.7497785,0.00045,30]
[330176703,1719075280190,-2039.15849242,0.00045,30]
[330176704,1719075280225,-199.78582519,0.00045,120]
[330176705,1719075280260,-150.0,0.00045,85]
[330176706,1719075280296,-614.81791167,0.00045,60]
[330176707,1719075280331,-200.0,0.00045,30]
[330176708,1719075280368,-2000.0,0.00045,60]
[330176709,1719075280404,-6514.0,0.00045,120]
[330176710,1719075280439,-2000.0,0.00045,90]
[330176711,1719075280476,-2000.0,0.00045,90]
[330176712,1719075280511,-2000.0,0.00045,90]
[330176713,1719075280546,-2000.0,0.00045,90]
[330176714,1719075280588,-503.0,0.00045,120]
[330176715,1719075280624,-1000.0,0.00045,120]
[330176716,1719075280659,-500.0,0.00045,120]
[330176717,1719075280694,-19607.73,0.00045,120]
[330176718,1719075280729,-200.0,0.00045,120]
[330176719,1719075280764,-153.902213,0.00045,54]
[330176720,1719075280845,-339.18457378,0.00045013,120]
[330176721,1719075280882,-176.13627181,0.00045031,30]
[330176722,1719075280918,-229.91862882,0.00045031,30]
[330176723,1719075280957,-150.0,0.00045032,30]
[330176724,1719075280992,-176.13627181,0.00045081,30]
[330176725,1719075281028,-229.91862882,0.00045081,30]
[330176726,1719075281063,-150.0,0.00045088,30]
[330176727,1719075281097,-176.13627181,0.00045131,30]
[330176728,1719075281133,-229.91862882,0.00045131,30]
[330176729,1719075281170,-150.0,0.00045142,30]
[330176730,1719075281209,-150.0,0.00045162,30]
[330176731,1719075281245,-176.13627181,0.00045181,30]
[330176732,1719075281280,-229.91862882,0.00045181,30]
[330176733,1719075281315,-150.0,0.00045201,120]
[330176734,1719075281348,-800.0,0.00045205,30]
[330176735,1719075281386,-176.13627181,0.0004523,30]
[330176736,1719075281428,-229.91862882,0.0004523,30]
[330176737,1719075281463,-4452.8,0.00045251,107]
[330176738,1719075281500,-176.13627181,0.0004528,30]
[330176739,1719075281535,-229.91862882,0.0004528,30]
[330176740,1719075281571,-150.0,0.00045292,30]
[330176741,1719075281609,-150.0,0.00045324,120]
[330176742,1719075281644,-176.13627181,0.0004533,30]
[330176743,1719075281680,-229.91862882,0.0004533,30]
[330176744,1719075281714,-150.0,0.00045332,30]
[330176745,1719075281748,-150.0,0.0004537,30]
[330176746,1719075281783,-176.13627181,0.0004538,30]
[330176747,1719075281817,-229.91862882,0.0004538,30]
[330176748,1719075281856,-150.0,0.00045422,30]
[330176749,1719075281891,-176.13627181,0.0004543,30]
[330176750,1719075281930,-229.91862882,0.0004543,30]
[330176751,1719075281967,-800.0,0.00045479,30]
[330176752,1719075282004,-176.13627181,0.00045479,30]
[330176753,1719075282039,-229.91862882,0.00045479,30]
[330176754,1719075282074,-150.0,0.00045522,30]
[330176755,1719075282111,-176.13627181,0.00045529,30]
[330176756,1719075282148,-229.91862882,0.00045529,30]
[330176757,1719075282180,-150.0,0.00045551,30]
[330176758,1719075282214,-176.13627181,0.00045579,30]
[330176759,1719075282248,-229.91862882,0.00045579,30]
[330176760,1719075282281,-150.0,0.00045616,30]
[330176761,1719075282314,-150.0,0.00045616,30]
[330176762,1719075282349,-176.13627181,0.00045629,30]
[330176763,1719075282387,-229.91862882,0.00045629,30]
[330176764,1719075282425,-176.13627181,0.00045679,30]
[330176765,1719075282460,-229.91862882,0.00045679,30]
[330176766,1719075282495,-150.0,0.00045681,30]
[330176767,1719075282528,-150.0,0.00045711,30]
[330176768,1719075282563,-176.13627181,0.00045728,30]
[330176769,1719075282597,-229.91862882,0.00045728,30]
[330176770,1719075282632,-800.0,0.00045753,30]
[330176771,1719075282666,-487.14564259,0.00045753,30]
[330176772,1719075282702,-342.03644861,0.00045753,10]
[330176773,1719075282737,-176.13627181,0.00045778,30]
[330176774,1719075282770,-229.91862882,0.00045778,30]
[330176775,1719075282802,-150.0,0.00045793,30]
[330176776,1719075282840,-150.0,0.00045811,30]
[330176777,1719075282878,-176.13627181,0.00045828,30]
[330176778,1719075282914,-229.91862882,0.00045828,30]
[330176779,1719075282951,-150.0,0.00045874,120]
[330176780,1719075282986,-176.13627181,0.00045878,30]
[330176781,1719075283023,-229.91862882,0.00045878,30]
[330176782,1719075283064,-2148.9642716,0.000459,60]
[330176783,1719075283101,-150.0,0.00045901,30]
[330176784,1719075283146,-176.13627181,0.00045928,30]
[330176785,1719075283182,-229.91862882,0.00045928,30]
[330176786,1719075283223,-150.0,0.00045941,30]
[330176787,1719075283259,-176.13627181,0.00045978,30]
[330176788,1719075283296,-229.91862882,0.00045978,30]
[330176789,1719075283331,-3000.0,0.0004599,60]
[330176790,1719075283369,-50000.0,0.00046,36]
[330176791,1719075283408,-167.5,0.00046,96]
[330176792,1719075283444,-500.0,0.00046,30]
[330176793,1719075283480,-2000.0,0.00046,60]
[330176794,1719075283515,-2567.0,0.00046,120]
[330176795,1719075283552,-202.439004,0.00046,22]
[330176796,1719075283588,-800.0,0.00046027,30]
[330176797,1719075283623,-500.0,0.00046027,120]
[330176798,1719075283658,-176.13627181,0.00046027,30]
[330176799,1719075283694,-150.0,0.00046027,30]
[330176800,1719075283731,-229.91862882,0.00046027,30]
[330176801,1719075283766,-150.0,0.00046071,30]
[330176802,1719075283805,-176.13627181,0.00046077,30]
[330176803,1719075283842,-229.91862882,0.00046077,30]
[330176804,1719075283877,-150.0,0.00046091,30]
[330176805,1719075283918,-176.13627181,0.00046127,30]
[330176806,1719075283955,-229.91862882,0.00046127,30]
[330176807,1719075283992,-323.0,0.0004613,30]
[330176808,1719075284033,-533.0,0.0004613,30]
[330176809,1719075284069,-176.13627181,0.00046177,30]
[330176810,1719075284107,-229.91862882,0.00046177,30]
[330176811,1719075284147,-150.0,0.000462,30]
[330176812,1719075284186,-176.13627181,0.00046227,30]
[330176813,1719075284221,-229.91862882,0.00046227,30]
[330176814,1719075284258,-176.13627181,0.00046276,30]
[330176815,1719075284293,-229.91862882,0.00046276,30]
[330176816,1719075284329,-150.0,0.0004628,30]
[330176817,1719075284365,-800.0,0.00046301,30]
[330176818,1719075284404,-176.13627181,0.00046326,30]
[330176819,1719075284442,-229.91862882,0.00046326,30]
[330176820,1719075284479,-150.0,0.0004633,30]
[330176821,1719075284516,-150.0,0.00046356,30]
[330176822,1719075284553,-176.13627181,0.00046376,30]
[330176823,1719075284590,-229.91862882,0.00046376,30]
[330176824,1719075284627,-176.13627181,0.00046426,30]
[330176825,1719075284662,-229.91862882,0.00046426,30]
[330176826,1719075284697,-150.0,0.0004646,30]
[330176827,1719075284861,-150.0,0.0004647,30]
[330176828,1719075284900,-176.13627181,0.00046476,30]
[330176829,1719075284937,-229.91862882,0.00046476,30]
[330176830,1719075284975,-150.0,0.00046497,30]
[330176831,1719075285010,-176.13627181,0.00046525,30]
[330176832,1719075285054,-229.91862882,0.00046525,30]
[330176833,1719075285100,-800.0,0.00046575,30]
[330176834,1719075285143,-500.0,0.00046575,120]
[330176835,1719075285181,-176.13627181,0.00046575,30]
[330176836,1719075285216,-229.91862882,0.00046575,30]
[330176837,1719075285255,-200.0,0.00046575,60]
[330176838,1719075285289,-150.0,0.0004659,30]
[330176839,1719075285323,-176.13627181,0.00046625,30]
[330176840,1719075285359,-229.91862882,0.00046625,30]
[330176841,1719075285393,-150.0,0.0004666,30]
[330176842,1719075285432,-176.13627181,0.00046675,30]
[330176843,1719075285468,-229.91862882,0.00046675,30]
[330176844,1719075285506,-150.0,0.00046719,30]
[330176845,1719075285542,-176.13627181,0.00046725,30]
[330176846,1719075285578,-229.91862882,0.00046725,30]
[330176847,1719075285615,-176.13627181,0.00046775,30]
[330176848,1719075285653,-229.91862882,0.00046775,30]
[330176849,1719075285689,-176.13627181,0.00046824,30]
[330176850,1719075285726,-229.91862882,0.00046824,30]
[330176851,1719075285763,-800.0,0.00046849,30]
[330176852,1719075285798,-1039.0,0.00046849,30]
[330176853,1719075285833,-150.0,0.00046849,30]
[330176854,1719075285867,-150.0,0.00046849,30]
[330176855,1719075285904,-150.0,0.00046849,30]
[330176856,1719075285939,-150.0,0.00046849,30]
[330176857,1719075285975,-150.0,0.00046849,30]
[330176858,1719075286010,-176.13627181,0.00046874,30]
[330176859,1719075286045,-229.91862882,0.00046874,30]
[330176860,1719075286080,-176.13627181,0.00046924,30]
[330176861,1719075286115,-229.91862882,0.00046924,30]
[330176862,1719075286151,-176.13627181,0.00046974,30]
[330176863,1719075286186,-229.91862882,0.00046974,30]
[330176864,1719075286220,-150.0,0.00046979,30]
[330176865,1719075286258,-45000.0,0.00047,37]
[330176866,1719075286294,-5000.0,0.00047,37]
[330176867,1719075286330,-2401.34027524,0.00047,120]
[330176868,1719075286364,-500.0,0.00047,30]
[330176869,1719075286400,-176.13627181,0.00047024,30]
[330176870,1719075286437,-229.91862882,0.00047024,30]
[330176871,1719075286472,-150.0,0.00047039,30]
[330176872,1719075286508,-176.13627181,0.00047073,30]
[330176873,1719075286544,-229.91862882,0.00047073,30]
[330176874,1719075286581,-150.0,0.00047109,30]
[330176875,1719075286618,-800.0,0.00047123,30]
[330176876,1719075286654,-500.0,0.00047123,120]
[330176877,1719075286690,-176.13627181,0.00047123,30]
[330176878,1719075286726,-229.91862882,0.00047123,30]
[330176879,1719075286761,-176.13627181,0.00047173,30]
[330176880,1719075286797,-229.91862882,0.00047173,30]
[330176881,1719075286834,-150.0,0.00047201,120]
[330176882,1719075286870,-150.0,0.00047202,30]
[330176883,1719075286907,-176.13627181,0.00047223,30]
[330176884,1719075286944,-229.91862882,0.00047223,30]
[330176885,1719075286980,-150.0,0.00047229,30]
[330176886,1719075287016,-150.0,0.00047239,30]
[330176887,1719075287051,-571.85365538,0.0004727,19]
[330176888,1719075287086,-176.13627181,0.00047273,30]
[330176889,1719075287123,-229.91862882,0.00047273,30]
[330176890,1719075287164,-176.13627181,0.00047322,30]
[330176891,1719075287202,-229.91862882,0.00047322,30]
[330176892,1719075287241,-150.0,0.00047342,30]
[330176893,1719075287283,-150.0,0.00047368,30]
[330176894,1719075287328,-176.13627181,0.00047372,30]
[330176895,1719075287364,-229.91862882,0.00047372,30]
[330176896,1719075287402,-800.0,0.00047397,30]
[330176897,1719075287437,-3000.0,0.00047397,120]
[330176898,1719075287476,-3000.0,0.00047397,120]
[330176899,1719075287515,-3000.0,0.00047397,120]
[330176900,1719075287550,-3000.0,0.00047397,120]
[330176901,1719075287588,-3000.0,0.00047397,120]
[330176902,1719075287623,-3000.0,0.00047397,120]
[330176903,1719075287659,-1255.04430448,0.00047397,120]
[330176904,1719075287694,-750.0,0.000474,120]
[330176905,1719075287730,-150.0,0.00047418,30]
[330176906,1719075287766,-176.13627181,0.00047422,30]
[330176907,1719075287801,-229.91862882,0.00047422,30]
[330176908,1719075287838,-176.13627181,0.00047472,30]
[330176909,1719075287872,-229.91862882,0.00047472,30]
[330176910,1719075287909,-357.49270997,0.0004748,120]
[330176911,1719075288150,-150.0,0.00047498,30]
[330176912,1719075288188,-2000.0,0.000475,60]
[330176913,1719075288230,-176.13627181,0.00047522,30]
[330176914,1719075288270,-229.91862882,0.00047522,30]
[330176915,1719075288307,-176.13627181,0.00047572,30]
[330176916,1719075288345,-229.91862882,0.00047572,30]
[330176917,1719075288381,-150.0,0.00047608,30]
[330176918,1719075288421,-176.13627181,0.00047621,30]
[330176919,1719075288460,-229.91862882,0.00047621,30]
[330176920,1719075288496,-150.0,0.00047628,30]
[330176921,1719075288531,-800.0,0.00047671,30]
[330176922,1719075288568,-500.0,0.00047671,120]
[330176923,1719075288605,-176.13627181,0.00047671,30]
[330176924,1719075288640,-150.0,0.00047671,30]
[330176925,1719075288679,-229.91862882,0.00047671,30]
[330176926,1719075288719,-323.0,0.0004772,30]
[330176927,1719075288758,-533.0,0.0004772,30]
[330176928,1719075288797,-218.0,0.0004772,30]
[330176929,1719075288837,-176.13627181,0.00047721,30]
[330176930,1719075288873,-229.91862882,0.00047721,30]
[330176931,1719075288915,-150.0,0.00047758,30]
[330176932,1719075288952,-176.13627181,0.00047771,30]
[330176933,1719075288989,-229.91862882,0.00047771,30]
[330176934,1719075289035,-150.0,0.00047798,30]
[330176935,1719075289078,-176.13627181,0.00047821,30]
[330176936,1719075289119,-229.91862882,0.00047821,30]
[330176937,1719075289159,-176.13627181,0.0004787,30]
[330176938,1719075289196,-229.91862882,0.0004787,30]
[330176939,1719075289234,-150.0,0.00047887,30]
[330176940,1719075289271,-150.0,0.00047906,30]
[330176941,1719075289307,-176.13627181,0.0004792,30]
[330176942,1719075289344,-229.91862882,0.0004792,30]
[330176943,1719075289382,-800.0,0.00047945,30]
[330176944,1719075289426,-176.13627181,0.0004797,30]
[330176945,1719075289463,-229.91862882,0.0004797,30]
[330176946,1719075289506,-2398.83513803,0.0004798,120]
[330176947,1719075289542,-150.0,0.00047987,30]
[330176948,1719075289577,-252.31756017,0.00047994,40]
[330176949,1719075289617,-296.31449873,0.00047994,40]
[330176950,1719075289656,-50000.0,0.00048,38]
[330176951,1719075289692,-2000.0,0.00048,60]
[330176952,1719075289728,-2003.0,0.00048,60]
[330176953,1719075289763,-1466.4,0.00048,60]
[330176954,1719075289798,-500.0,0.00048,30]
[330176955,1719075289836,-168.26277946,0.00048,120]
[330176956,1719075289870,-2000.0,0.00048,60]
[330176957,1719075289906,-518.0,0.00048,120]
[330176958,1719075289943,-200.0,0.00048,25]
[330176959,1719075289980,-150.0,0.00048017,30]
[330176960,1719075290022,-176.13627181,0.0004802,30]
[330176961,1719075290061,-229.91862882,0.0004802,30]
[330176962,1719075290105,-176.13627181,0.0004807,30]
[330176963,1719075290141,-229.91862882,0.0004807,30]
[330176964,1719075290178,-150.0,0.00048082,30]
[330176965,1719075290216,-150.0,0.00048082,30]
[330176966,1719075290252,-176.13627181,0.00048119,30]
[330176967,1719075290288,-229.91862882,0.00048119,30]
[330176968,1719075290324,-150.0,0.00048147,30]
[330176969,1719075290361,-176.13627181,0.00048169,30]
[330176970,1719075290402,-229.91862882,0.00048169,30]
[330176971,1719075290439,-150.0,0.00048177,30]
[330176972,1719075290477,-491.30102997,0.00048219,30]
[330176973,1719075290517,-500.0,0.00048219,120]
[330176974,1719075290554,-176.13627181,0.00048219,30]
[330176975,1719075290590,-229.91862882,0.00048219,30]
[330176976,1719075290626,-176.13627181,0.00048269,30]
[330176977,1719075290663,-229.91862882,0.00048269,30]
[330176978,1719075290699,-150.0,0.00048277,30]
[330176979,1719075290734,-176.13627181,0.00048319,30]
[330176980,1719075290770,-229.91862882,0.00048319,30]
[330176981,1719075290806,-150.0,0.00048329,30]
[330176982,1719075290841,-150.0,0.00048367,30]
[330176983,1719075290946,-176.13627181,0.00048369,30]
[330176984,1719075290981,-229.91862882,0.00048369,30]
[330176985,1719075291016,-150.0,0.00048407,30]
[330176986,1719075291051,-176.13627181,0.00048418,30]
[330176987,1719075291089,-229.91862882,0.00048418,30]
[330176988,1719075291124,-176.13627181,0.00048468,30]
[330176989,1719075291160,-229.91862882,0.00048468,30]
[330176990,1719075291199,-295.84982764,0.00048493,30]
[330176991,1719075291234,-2000.0,0.000485,60]
[330176992,1719075291270,-176.13627181,0.00048518,30]
[330176993,1719075291306,-229.91862882,0.00048518,30]
[330176994,1719075291341,-150.0,0.00048536,30]
[330176995,1719075291382,-150.0,0.00048556,30]
[330176996,1719075291424,-176.13627181,0.00048568,30]
[330176997,1719075291462,-229.91862882,0.00048568,30]
[330176998,1719075291503,-150.0,0.00048611,30]
[330176999,1719075291539,-176.13627181,0.00048618,30]
[330177000,1719075291574,-229.91862882,0.00048618,30]
[330177001,1719075291609,-150.0,0.00048666,30]
[330177002,1719075291644,-176.13627181,0.00048667,30]
[330177003,1719075291681,-229.91862882,0.00048667,30]
[330177004,1719075291717,-176.13627181,0.00048717,30]
[330177005,1719075291754,-229.91862882,0.00048717,30]
[330177006,1719075291790,-150.0,0.00048746,30]
[330177007,1719075291826,-500.0,0.00048767,120]
[330177008,1719075291861,-176.13627181,0.00048767,30]
[330177009,1719075291896,-229.91862882,0.00048767,30]
[330177010,1719075291933,-150.0,0.00048796,30]
[330177011,1719075291969,-253.98,0.000488,120]
[330177012,1719075292005,-294.9,0.000488,120]
[330177013,1719075292042,-176.13627181,0.00048817,30]
[330177014,1719075292079,-229.91862882,0.00048817,30]
[330177015,1719075292117,-176.13627181,0.00048867,30]
[330177016,1719075292153,-229.91862882,0.00048867,30]
[330177017,1719075292189,-451.72504422,0.000489,30]
[330177018,1719075292225,-176.13627181,0.00048916,30]
[330177019,1719075292260,-229.91862882,0.00048916,30]
[330177020,1719075292296,-150.0,0.00048926,30]
[330177021,1719075292331,-150.0,0.00048936,30]
[330177022,1719075292365,-176.13627181,0.00048966,30]
[330177023,1719075292400,-229.91862882,0.00048966,30]
[330177024,1719075292437,-682746.88896478,0.00048971,120]
[330177025,1719075292473,-336.07134,0.00048971,14]
[330177026,1719075292511,-336.07134,0.00048971,14]
[330177027,1719075292548,-400.671873,0.00048971,14]
[330177028,1719075292583,-400.671873,0.00048971,14]